bitfinex/quotes_SOLUSD_20241231
["timestamp","ask_amount","ask_price","bid_price","bid_amount"]
[1735631321644,20.0,190.48,190.36,2.35942898]
[1735631321835,20.0,190.48,190.45,9.61766703]
[1735631324055,20.0,190.48,190.43,9.61766703]
[1735631324344,23.776884,190.47,190.36,1.5717]
[1735631324545,23.776884,190.47,190.41,9.61766703]
[1735631324763,20.0,190.48,190.36,2.35945472]
[1735631325053,20.0,190.48,190.42,9.61766703]
[1735631326352,20.0,190.48,190.43,9.61766703]
[1735631329147,20.0,190.48,190.42,9.61766703]
[1735631330446,20.0,190.48,190.43,9.61766703]
[1735631330642,20.0,190.48,190.36,2.35945472]
[1735631330842,20.0,190.48,190.43,9.61766703]
[1735631331235,20.0,190.48,190.36,1.5717]
[1735631331459,20.0,190.48,190.43,9.61766703]
[1735631333561,20.0,190.48,190.44,9.61766703]
[1735631333857,20.0,190.48,190.46,9.61766703]
[1735631334262,9.41970996,190.56,190.47,9.61766703]
[1735631334433,9.41970996,190.56,190.5,9.61766703]
[1735631334833,20.0,190.52,190.49,9.61766703]
[1735631335336,20.0,190.53,190.49,9.61766703]
[1735631335552,20.0,190.53,190.48,9.61766703]
[1735631335736,20.0,190.54,190.48,9.61766703]
[1735631337570,20.0,190.54,190.49,9.61766703]
[1735631338646,20.0,190.54,190.48,9.61766703]
[1735631339375,20.0,190.54,190.42,1.6356]
[1735631339542,20.0,190.5,190.45,9.61766703]
[1735631340744,20.0,190.5,190.44,9.61766703]
[1735631342759,20.0,190.5,190.45,9.61766703]
[1735631343268,20.0,190.5,190.37,2.3572981]
[1735631343444,20.0,190.5,190.46,9.61766703]
[1735631346260,20.0,190.5,190.45,9.61766703]
[1735631346441,20.0,190.5,190.44,9.61766703]
[1735631346948,20.0,190.5,190.45,9.61766703]
[1735631347148,20.0,190.5,190.44,9.61766703]
[1735631354575,20.0,190.5,190.37,2.35731503]
[1735631354779,20.0,190.5,190.44,9.61766703]
[1735631354950,20.0,190.5,190.37,2.35731503]
[1735631355151,20.0,190.5,190.44,9.61766703]
[1735631358172,20.0,190.5,190.37,2.35731503]
[1735631358173,20.0,190.5,190.45,9.61766703]
[1735631361672,1.5807,190.52,190.47,9.61766703]
[1735631361870,1.5807,190.52,190.48,9.61766703]
[1735631362065,20.0,190.51,190.48,9.61766703]
[1735631364476,20.0,190.51,190.47,9.61766703]
[1735631365762,20.0,190.51,190.39,0.7874531]
[1735631365958,20.0,190.51,190.47,9.61766703]
[1735631366278,20.0,190.51,190.46,9.61766703]
[1735631367282,20.0,190.51,190.39,0.7874531]
[1735631367480,20.0,190.51,190.46,9.61766703]
[1735631367663,20.0,190.51,190.45,9.61766703]
[1735631371667,20.0,190.51,190.39,0.7874531]
[1735631371668,20.0,190.47,190.39,0.7874531]
[1735631371986,20.0,190.47,190.42,9.61766703]
[1735631372168,20.0,190.47,190.43,9.61766703]
[1735631373682,1.5807,190.52,190.43,9.61766703]
[1735631373889,43.776884,190.51,190.44,9.61766703]
[1735631374090,20.0,190.49,190.44,9.61766703]
[1735631376583,20.0,190.49,190.37,2.35731888]
[1735631376787,20.0,190.49,190.43,9.61766703]
[1735631385086,1.5807,190.52,190.43,9.61766703]
[1735631385267,1.5807,190.52,190.45,9.61766703]
[1735631385468,1.5807,190.52,190.47,9.61766703]
[1735631385891,20.0,190.51,190.47,9.61766703]
[1735631387876,20.0,190.51,190.46,9.61766703]
[1735631388073,20.0,190.51,190.48,9.61766703]
[1735631389986,20.0,190.51,190.49,9.61766703]
[1735631391298,21.5399,190.56,190.5,9.61766703]
[1735631395201,21.5399,190.56,190.49,9.61766703]
[1735631397914,21.5399,190.56,190.5,9.61766703]
[1735631398300,21.5399,190.56,190.49,9.61766703]
[1735631399705,21.5399,190.56,190.5,9.61766703]
[1735631402584,21.5399,190.56,190.51,9.61766703]
[1735631402789,20.0,190.56,190.53,9.61766703]
[1735631404795,20.0,190.56,190.45,23.776884]
[1735631405009,20.0,190.56,190.53,9.61766703]
[1735631405603,20.0,190.56,190.54,9.61766703]
[1735631405778,1.5868,190.61,190.54,9.61766703]
[1735631406082,20.0,190.57,190.5,9.61766703]
[1735631407407,20.0,190.56,190.5,9.61766703]
[1735631409078,20.0,190.56,190.51,9.61766703]
[1735631409899,20.0,190.56,190.53,9.61766703]
[1735631410298,20.0,190.56,190.45,0.78709778]
[1735631410602,20.0,190.56,190.52,9.61766703]
[1735631412006,20.0,190.56,190.45,0.78709778]
[1735631412202,20.0,190.56,190.52,9.61766703]
[1735631419817,20.0,190.56,190.53,9.61766703]
[1735631421211,20.0,190.6,190.54,9.61766703]
[1735631421912,20.0,190.6,190.45,0.78709778]
[1735631422121,20.0,190.6,190.52,9.61766703]
[1735631422802,20.0,190.56,190.45,0.78709778]
[1735631423112,20.0,190.54,190.49,9.61766703]
[1735631423296,20.0,190.54,190.51,9.61766703]
[1735631425398,20.0,190.54,190.45,24.56428378]
[1735631425709,20.0,190.54,190.45,0.78739978]
[1735631425911,20.0,190.54,190.5,9.61766703]
[1735631426826,20.0,190.54,190.45,0.78739978]
[1735631427032,20.0,190.54,190.49,9.61766703]
[1735631428523,20.0,190.54,190.5,9.61766703]
[1735631428722,20.0,190.54,190.49,9.61766703]
[1735631428916,20.0,190.54,190.38,0.78738466]
[1735631428917,21.6372,190.54,190.39,1.5177]
[1735631429119,21.6372,190.54,190.47,9.61766703]
[1735631431529,21.6372,190.54,190.4,0.78748888]
[1735631431831,21.6372,190.54,190.47,9.61766703]
[1735631433222,20.0,190.5,190.46,9.61766703]
[1735631433435,20.0,190.5,190.45,9.61766703]
[1735631434510,20.0,190.5,190.46,9.61766703]
[1735631434709,1.6372,190.54,190.46,9.61766703]
[1735631435003,21.6372,190.54,190.46,9.61766703]
[1735631435207,21.6372,190.54,190.47,9.61766703]
[1735631436034,21.6372,190.54,190.46,9.61766703]
[1735631436621,20.0,190.5,190.45,9.61766703]
[1735631437248,21.6372,190.54,190.45,9.61766703]
[1735631437615,20.0,190.5,190.39,2.30527046]
[1735631437823,20.0,190.5,190.45,9.61766703]
[1735631440338,20.0,190.5,190.46,9.61766703]
[1735631440543,20.0,190.5,190.48,9.61766703]
[1735631441039,20.0,190.5,190.46,9.61766703]
[1735631442545,20.0,190.5,190.47,9.61766703]
[1735631448032,20.0,190.5,190.46,9.61766703]
[1735631454155,20.0,190.5,190.39,2.30522148]
[1735631454156,20.0,190.5,190.45,9.61766703]
[1735631458843,20.0,190.5,190.46,9.61766703]
[1735631459446,20.0,190.5,190.45,9.61766703]
[1735631460549,20.0,190.5,190.39,2.30522029]
[1735631460550,20.0,190.5,190.39,0.78752029]
[1735631460860,20.0,190.5,190.43,9.61766703]
[1735631461039,1.5629,190.49,190.38,0.78762944]
[1735631461240,20.0,190.45,190.4,9.61766703]
[1735631461746,20.0,190.45,190.41,9.61766703]
[1735631462266,20.0,190.45,190.35,0.78765825]
[1735631462461,20.0,190.44,190.35,38.47066812]
[1735631462796,20.0,190.44,190.4,9.61766703]
[1735631462942,20.0,190.44,190.39,9.61766703]
[1735631463547,20.0,190.44,190.4,9.61766703]
[1735631464362,20.0,190.44,190.41,9.61766703]
[1735631464863,20.0,190.44,190.42,9.61766703]
[1735631465265,20.0,190.44,190.43,9.61766703]
[1735631470368,1.5629,190.49,190.43,9.61766703]
[1735631470663,21.5629,190.49,190.47,9.61766703]
[1735631471241,20.0,190.49,190.48,9.61766703]
[1735631471446,6.02,190.52,190.4,1.5778]
[1735631471649,6.02,190.52,190.48,9.61766703]
[1735631471960,20.0,190.49,190.48,9.61766703]
[1735631473745,1.5629,190.54,190.48,9.61766703]
[1735631473949,1.5629,190.54,190.5,9.61766703]
[1735631474158,1.5629,190.54,190.51,9.61766703]
[1735631474355,21.5629,190.54,190.5,9.61766703]
[1735631474764,21.5629,190.54,190.44,39.25798922]
[1735631474966,21.5629,190.54,190.49,9.61766703]
[1735631475267,21.5629,190.54,190.48,9.61766703]
[1735631475480,21.5629,190.54,190.42,23.776884]
[1735631475666,21.5629,190.54,190.48,9.61766703]
[1735631476173,21.5629,190.54,190.43,0.78737628]
[1735631476677,21.5629,190.54,190.48,9.61766703]
[1735631476850,21.5629,190.54,190.49,9.61766703]
[1735631477974,21.5629,190.54,190.43,0.78737628]
[1735631478176,21.5629,190.54,190.49,9.61766703]
[1735631478353,21.5629,190.54,190.43,0.78737628]
[1735631478554,21.5629,190.54,190.46,9.61766703]
[1735631479059,21.5629,190.54,190.41,0.78739737]
[1735631479265,20.0,190.5,190.44,9.61766703]
[1735631481976,20.0,190.5,190.45,9.61766703]
[1735631482675,20.0,190.5,190.44,9.61766703]
[1735631482877,20.0,190.5,190.43,9.61766703]
[1735631485376,20.0,190.5,190.44,9.61766703]
[1735631486478,20.0,190.5,190.43,9.61766703]
[1735631486679,1.6235,190.49,190.43,9.61766703]
[1735631487080,1.6235,190.49,190.44,9.61766703]
[1735631490177,20.0,190.5,190.44,9.61766703]
[1735631490368,20.0,190.5,190.47,9.61766703]
[1735631490880,20.0,190.5,190.48,9.61766703]
[1735631493671,20.0,190.5,190.47,9.61766703]
[1735631494071,20.0,190.5,190.46,9.61766703]
[1735631494886,20.0,190.5,190.44,9.61766703]
[1735631496383,20.0,190.5,190.38,0.78746034]
[1735631496576,20.0,190.5,190.43,9.61766703]
[1735631499494,20.0,190.5,190.44,9.61766703]
[1735631505278,20.0,190.5,190.46,9.61766703]
[1735631507609,20.0,190.5,190.39,23.776884]
[1735631507897,20.0,190.5,190.45,9.61766703]
[1735631509101,20.0,190.5,190.46,9.61766703]
[1735631514606,20.0,190.5,190.44,9.61766703]
[1735631517111,20.0,190.5,190.38,0.78760093]
[1735631517295,20.0,190.5,190.43,9.61766703]
[1735631518316,20.0,190.46,190.38,0.78760093]
[1735631518486,20.0,190.44,190.41,9.61766703]
[1735631519008,20.0,190.44,190.36,0.78764722]
[1735631519209,20.0,190.44,190.4,9.61766703]
[1735631520111,20.0,190.44,190.41,9.61766703]
[1735631521401,20.0,190.44,190.42,9.61766703]
[1735631521708,20.0,190.44,190.41,9.61766703]
[1735631521915,20.0,190.44,190.42,9.61766703]
[1735631522521,20.0,190.44,190.41,9.61766703]
[1735631524614,20.0,190.44,190.43,9.61766703]
[1735631526810,20.0,190.44,190.36,0.78764722]
[1735631527114,20.0,190.44,190.42,9.61766703]
[1735631528416,20.0,190.44,190.41,9.61766703]
[1735631530693,20.0,190.44,190.4,9.61766703]
[1735631533425,20.0,190.44,190.41,9.61766703]
[1735631536205,20.0,190.44,190.42,9.61766703]
[1735631536932,20.0,190.44,190.41,9.61766703]
[1735631537306,20.0,190.44,190.42,9.61766703]
[1735631541644,20.0,190.44,190.41,9.61766703]
[1735631541931,20.0,190.44,190.4,9.61766703]
[1735631544034,20.0,190.44,190.41,9.61766703]
[1735631544233,20.0,190.44,190.42,9.61766703]
[1735631545535,20.0,190.44,190.41,9.61766703]
[1735631547718,20.0,190.44,190.36,0.78764722]
[1735631547914,20.0,190.44,190.39,9.61766703]
[1735631549927,20.0,190.44,190.4,9.61766703]
[1735631550124,20.0,190.44,190.41,9.61766703]
[1735631552140,20.0,190.44,190.42,9.61766703]
[1735631553339,7.8293,190.51,190.43,9.61766703]
[1735631553513,20.0,190.48,190.45,9.61766703]
[1735631553717,7.8293,190.51,190.46,9.61766703]
[1735631554343,20.0,190.48,190.46,9.61766703]
[1735631555317,20.0,190.48,190.47,9.61766703]
[1735631557035,20.0,190.48,190.4,0.78745568]
[1735631557217,20.0,190.48,190.46,9.61766703]
[1735631558526,20.0,190.48,190.45,9.61766703]
[1735631558930,20.0,190.48,190.4,0.78745568]
[1735631559124,20.0,190.48,190.38,0.78756803]
[1735631559434,20.0,190.48,190.42,9.61766703]
[1735631559639,20.0,190.48,190.38,0.78756803]
[1735631560021,20.0,190.48,190.43,9.61766703]
[1735631561437,20.0,190.48,190.42,9.61766703]
[1735631561630,20.0,190.48,190.41,9.61766703]
[1735631561830,20.0,190.48,190.36,2.29156332]
[1735631562036,20.0,190.48,190.41,9.61766703]
[1735631563031,20.0,190.48,190.4,9.61766703]
[1735631563448,20.0,190.48,190.39,9.61766703]
[1735631564225,20.0,190.48,190.35,38.47066812]
[1735631564226,20.0,190.48,190.4,9.61766703]
[1735631565730,20.0,190.48,190.43,9.61766703]
[1735631565929,20.0,190.48,190.41,9.61766703]
[1735631566450,20.0,190.44,190.32,9.68929147]
[1735631566654,20.0,190.44,190.36,9.61766703]
[1735631566874,20.0,190.39,190.34,9.61766703]
[1735631567541,20.0,190.39,190.33,9.61766703]
[1735631567740,20.0,190.39,190.28,10.47724418]
[1735631567968,20.0,190.39,190.26,8.85986379]
[1735631568270,20.0,190.39,190.31,9.61766703]
[1735631573569,20.0,190.39,190.32,9.61766703]
[1735631575270,20.0,190.39,190.26,39.25874044]
[1735631575271,20.0,190.39,190.26,0.78807232]
[1735631575473,1.6367,190.38,190.24,0.7880669]
[1735631575677,1.6367,190.38,190.3,9.61766703]
[1735631576253,20.0,190.33,190.24,0.7880669]
[1735631576452,20.0,190.33,190.27,9.61766703]
[1735631585876,20.0,190.33,190.28,9.61766703]
[1735631586068,20.0,190.33,190.29,9.61766703]
[1735631586274,6.2921,190.36,190.3,9.61766703]
[1735631587075,20.0,190.33,190.3,9.61766703]
[1735631587666,20.0,190.33,190.29,9.61766703]
[1735631589195,20.0,190.33,190.27,9.61766703]
[1735631590491,1.5815,190.32,190.27,9.61766703]
[1735631590663,1.5815,190.32,190.26,9.61766703]
[1735631595792,1.5815,190.32,190.25,9.61766703]
[1735631596787,21.5815,190.32,190.24,9.61766703]
[1735631597487,20.0,190.28,190.23,9.61766703]
[1735631597683,20.0,190.27,190.22,9.61766703]
[1735631598363,20.0,190.27,190.2,9.61766703]
[1735631599483,1.5821,190.26,190.2,9.61766703]
[1735631599675,1.5821,190.26,190.19,9.61766703]
[1735631600076,1.5821,190.26,190.18,9.61766703]
[1735631601679,19.44826869,190.27,190.18,9.61766703]
[1735631601878,19.44826869,190.27,190.19,9.61766703]
[1735631602265,19.44826869,190.27,190.18,9.61766703]
[1735631602768,6.1941,190.3,190.18,9.61766703]
[1735631602971,23.776884,190.29,190.18,9.61766703]
[1735631603166,23.776884,190.29,190.16,9.61766703]
[1735631603793,20.0,190.26,190.17,9.61766703]
[1735631604802,1.5821,190.25,190.17,9.61766703]
[1735631606902,1.5821,190.25,190.19,9.61766703]
[1735631608200,1.5821,190.25,190.2,9.61766703]
[1735631608396,1.5821,190.25,190.21,9.61766703]
[1735631608598,1.5821,190.25,190.22,9.61766703]
[1735631608798,20.0,190.27,190.22,9.61766703]
[1735631608998,20.0,190.27,190.23,9.61766703]
[1735631609813,7.8092,190.3,190.23,9.61766703]
[1735631610012,20.0,190.27,190.24,9.61766703]
[1735631613598,20.0,190.27,190.23,9.61766703]
[1735631614524,20.0,190.27,190.18,0.7883822]
[1735631614827,20.0,190.27,190.22,9.61766703]
[1735631615516,20.0,190.27,190.17,0.78846621]
[1735631615709,20.0,190.27,190.21,9.61766703]
[1735631618523,20.0,190.27,190.22,9.61766703]
[1735631619924,20.0,190.27,190.17,0.78846621]
[1735631620128,20.0,190.27,190.21,9.61766703]
[1735631626534,20.0,190.27,190.22,9.61766703]
[1735631626715,20.0,190.27,190.24,9.61766703]
[1735631627218,7.8092,190.3,190.26,9.61766703]
[1735631631725,20.0,190.27,190.26,9.61766703]
[1735631631907,20.0,190.27,190.23,9.61766703]
[1735631632623,20.0,190.27,190.22,9.61766703]
[1735631633333,20.0,190.27,190.16,1.5674]
[1735631633533,20.0,190.27,190.2,9.61766703]
[1735631634240,20.0,190.27,190.21,9.61766703]
[1735631634404,20.0,190.27,190.22,9.61766703]
[1735631635936,20.0,190.27,190.21,9.61766703]
[1735631637333,20.0,190.27,190.22,9.61766703]
[1735631639441,20.0,190.27,190.21,9.61766703]
[1735631640750,20.0,190.27,190.23,9.61766703]
[1735631640930,20.0,190.27,190.22,9.61766703]
[1735631641245,20.0,190.27,190.21,9.61766703]
[1735631642441,20.0,190.27,190.17,38.47066812]
[1735631642629,20.0,190.27,190.21,9.61766703]
[1735631643631,20.0,190.27,190.22,9.61766703]
[1735631644141,20.0,190.27,190.24,9.61766703]
[1735631644320,20.0,190.27,190.18,0.78853373]
[1735631644321,20.0,190.27,190.25,9.61766703]
[1735631645621,20.0,190.27,190.24,9.61766703]
[1735631646741,20.0,190.27,190.23,9.61766703]
[1735631648648,20.0,190.27,190.18,0.78853373]
[1735631648945,20.0,190.27,190.23,9.61766703]
[1735631650848,7.8092,190.3,190.23,9.61766703]
[1735631652428,20.0,190.27,190.23,9.61766703]
[1735631654445,20.0,190.27,190.24,9.61766703]
[1735631654952,7.8092,190.3,190.26,9.61766703]
[1735631655134,11.71906623,190.35,190.27,9.61766703]
[1735631655650,20.0,190.32,190.27,9.61766703]
[1735631656533,20.0,190.32,190.28,9.61766703]
[1735631656732,20.0,190.32,190.29,9.61766703]
[1735631657351,20.0,190.32,190.3,9.61766703]
[1735631657561,7.7633,190.35,190.3,9.61766703]
[1735631657736,5.54394837,190.39,190.32,9.61766703]
[1735631657942,5.54394837,190.39,190.31,9.61766703]
[1735631658444,20.0,190.37,190.32,9.61766703]
[1735631658970,1.5886,190.39,190.32,9.61766703]
[1735631659273,1.5886,190.39,190.33,9.61766703]
[1735631659634,20.0,190.37,190.33,9.61766703]
[1735631659934,1.5886,190.39,190.33,9.61766703]
[1735631660855,20.0,190.37,190.33,9.61766703]
[1735631661037,20.0,190.37,190.27,23.776884]
[1735631661238,20.0,190.37,190.32,9.61766703]
[1735631661836,20.0,190.37,190.31,9.61766703]
[1735631662955,20.0,190.37,190.28,0.78800397]
[1735631663149,20.0,190.37,190.28,9.61766703]
[1735631663461,20.0,190.37,190.29,9.61766703]
[1735631665258,19.49957615,190.37,190.29,9.61766703]
[1735631669362,19.49957615,190.37,190.3,9.61766703]
[1735631674464,19.49957615,190.37,190.31,9.61766703]
[1735631676077,19.49957615,190.37,190.32,9.61766703]
[1735631683477,19.49957615,190.37,190.33,9.61766703]
[1735631686077,19.49957615,190.37,190.28,0.78800789]
[1735631686268,19.49957615,190.37,190.33,9.61766703]
[1735631689983,19.49957615,190.37,190.32,9.61766703]
[1735631690982,19.49957615,190.37,190.31,9.61766703]
[1735631691357,19.49957615,190.37,190.3,9.61766703]
[1735631693082,19.49957615,190.37,190.26,39.25879654]
[1735631693287,19.49957615,190.37,190.31,9.61766703]
[1735631694590,19.49957615,190.37,190.32,9.61766703]
[1735631697783,90.2181,190.46,190.34,9.61766703]
[1735631697983,7.5181,190.46,190.38,9.61766703]
[1735631698373,20.0,190.43,190.39,9.61766703]
[1735631699279,20.0,190.43,190.38,9.61766703]
[1735631700294,20.0,190.43,190.39,9.61766703]
[1735631702593,20.0,190.43,190.38,9.61766703]
[1735631704089,20.0,190.43,190.39,9.61766703]
[1735631705994,20.0,190.43,190.33,0.7877508]
[1735631705995,20.0,190.43,190.38,9.61766703]
[1735631707900,20.0,190.43,190.37,9.61766703]
[1735631709295,20.0,190.43,190.35,9.61766703]
[1735631709687,20.0,190.43,190.36,9.61766703]
[1735631710004,20.0,190.43,190.37,9.61766703]
[1735631711279,20.0,190.43,190.38,9.61766703]
[1735631713282,20.0,190.43,190.39,9.61766703]
[1735631713483,20.0,190.43,190.4,9.61766703]
[1735631716104,20.0,190.43,190.41,9.61766703]
[1735631716291,7.5181,190.46,190.42,9.61766703]
[1735631716501,1.501,190.46,190.42,9.61766703]
[1735631718086,20.0,190.47,190.43,9.61766703]
[1735631719491,20.0,190.47,190.42,9.61766703]
[1735631721417,20.0,190.47,190.41,9.61766703]
[1735631722814,20.0,190.47,190.42,9.61766703]
[1735631726411,20.0,190.47,190.37,23.776884]
[1735631726614,20.0,190.47,190.42,9.61766703]
[1735631729820,20.0,190.47,190.43,9.61766703]
[1735631730123,20.0,190.47,190.44,9.61766703]
[1735631731734,20.0,190.47,190.43,9.61766703]
[1735631735737,20.0,190.47,190.41,9.61766703]
[1735631736025,20.0,190.47,190.4,9.61766703]
[1735631737825,20.0,190.47,190.41,9.61766703]
[1735631738808,20.0,190.47,190.42,9.61766703]
[1735631746050,20.0,190.47,190.43,9.61766703]
[1735631746941,20.0,190.47,190.37,23.776884]
[1735631747121,20.0,190.47,190.43,9.61766703]
[1735631747950,20.0,190.47,190.44,9.61766703]
[1735631748233,20.0,190.47,190.45,9.61766703]
[1735631749109,6.3029,190.5,190.45,9.61766703]
[1735631751549,6.3029,190.5,190.44,9.61766703]
[1735631753027,1.6105,190.51,190.45,9.61766703]
[1735631755632,1.6105,190.51,190.44,9.61766703]
[1735631756862,1.6105,190.51,190.4,0.7875422]
[1735631756863,1.6105,190.51,190.45,9.61766703]
[1735631759966,1.6105,190.51,190.4,0.7875422]
[1735631760328,1.6105,190.51,190.44,9.61766703]
[1735631760531,1.6105,190.51,190.4,0.7875422]
[1735631760729,1.6105,190.51,190.44,9.61766703]
[1735631761867,1.6105,190.51,190.4,0.7875422]
[1735631762055,20.0,190.47,190.37,8.8593238]
[1735631762225,20.0,190.47,190.41,9.61766703]
[1735631763758,20.0,190.47,190.37,0.78753233]
[1735631763956,20.0,190.47,190.4,9.61766703]
[1735631764558,1.6079,190.46,190.34,8.07179147]
[1735631764764,1.6079,190.46,190.37,9.61766703]
[1735631765543,1.6079,190.46,190.38,9.61766703]
[1735631765931,20.0,190.42,190.37,9.61766703]
[1735631766152,20.0,190.42,190.36,9.61766703]
[1735631768548,20.0,190.42,190.37,9.61766703]
[1735631775255,20.0,190.42,190.38,9.61766703]
[1735631775432,20.0,190.42,190.39,9.61766703]
[1735631776757,20.0,190.42,190.4,9.61766703]
[1735631777062,6.1291,190.45,190.41,9.61766703]
[1735631777946,21.6079,190.46,190.41,9.61766703]
[1735631779368,21.6079,190.46,190.4,9.61766703]
[1735631780263,21.6079,190.46,190.35,0.78771897]
[1735631780434,21.6079,190.46,190.39,9.61766703]
[1735631793088,20.0,190.46,190.42,9.61766703]
[1735631796081,20.0,190.46,190.43,9.61766703]
[1735631796383,1.5665,190.51,190.44,9.61766703]
[1735631796572,1.5665,190.51,190.45,9.61766703]
[1735631796883,21.5665,190.51,190.44,9.61766703]
[1735631799684,21.5665,190.51,190.39,0.78753839]
[1735631799879,21.5665,190.51,190.42,9.61766703]
[1735631800072,21.5665,190.51,190.43,9.61766703]
[1735631805875,21.5665,190.51,190.44,9.61766703]
[1735631808891,21.5665,190.51,190.46,9.61766703]
[1735631812987,20.0,190.51,190.46,9.61766703]
[1735631814898,20.0,190.51,190.47,9.61766703]
[1735631815397,20.0,190.51,190.46,9.61766703]
[1735631818186,20.0,190.51,190.47,9.61766703]
[1735631831317,20.0,190.51,190.38,9.02341636]
[1735631831521,20.0,190.51,190.46,9.61766703]
[1735631832592,20.0,190.51,190.47,9.61766703]
[1735631834494,20.0,190.51,190.48,9.61766703]
[1735631834701,20.0,190.51,190.49,9.61766703]
[1735631842527,20.0,190.51,190.5,9.61766703]
[1735631844330,20.0,190.51,190.44,0.78737204]
[1735631844514,20.0,190.51,190.42,9.0234201]
[1735631844833,20.0,190.51,190.48,9.61766703]
[1735631845128,20.0,190.51,190.42,9.0234201]
[1735631845325,20.0,190.51,190.48,9.61766703]
[1735631846527,20.0,190.51,190.49,9.61766703]
[1735631851706,20.0,190.51,190.43,0.78738382]
[1735631852028,20.0,190.51,190.49,9.61766703]
[1735631856833,20.0,190.51,190.5,9.61766703]
[1735631861838,20.0,190.51,190.43,9.02339321]
[1735631862136,20.0,190.51,190.49,9.61766703]
[1735631862938,20.0,190.51,190.43,9.02339321]
[1735631863233,20.0,190.51,190.49,9.61766703]
[1735631874540,20.0,190.51,190.47,9.61766703]
[1735631874737,20.0,190.51,190.46,9.61766703]
[1735631877134,20.0,190.51,190.48,9.61766703]
[1735631894691,20.0,190.51,190.43,9.02339321]
[1735631895158,20.0,190.51,190.45,9.61766703]
[1735631895346,20.0,190.51,190.44,9.61766703]
[1735631896750,21.6558,190.5,190.38,0.78761926]
[1735631896949,21.6558,190.5,190.44,9.61766703]
[1735631897144,20.0,190.46,190.38,0.78761926]
[1735631897345,20.0,190.46,190.42,9.61766703]
[1735631900675,20.0,190.46,190.43,9.61766703]
[1735631903579,20.0,190.46,190.42,9.61766703]
[1735631904954,1.6558,190.45,190.33,0.78771759]
[1735631905150,1.6558,190.45,190.39,9.61766703]
[1735631906072,1.6558,190.45,190.33,0.78771759]
[1735631906379,1.6558,190.45,190.39,9.61766703]
[1735631906679,1.6558,190.45,190.32,6.4303]
[1735631906879,1.6558,190.45,190.4,9.61766703]
[1735631908581,1.6558,190.45,190.32,6.4303]
[1735631908766,1.6558,190.45,190.4,9.61766703]
[1735631909682,1.6558,190.45,190.32,6.4303]
[1735631909874,1.6558,190.45,190.39,9.61766703]
[1735631910998,1.6558,190.45,190.32,6.4303]
[1735631911203,1.6558,190.45,190.39,9.61766703]
[1735631921218,1.6558,190.45,190.4,9.61766703]
[1735631921814,1.6558,190.45,190.41,9.61766703]
[1735631922519,1.6558,190.45,190.4,9.61766703]
[1735631925424,1.6558,190.45,190.39,9.61766703]
[1735631939451,1.6558,190.45,190.32,6.4303]
[1735631939748,1.6558,190.45,190.39,9.61766703]
[1735631939924,20.0,190.4,190.32,0.78784409]
[1735631940124,20.0,190.4,190.31,1.5053]
[1735631940330,1.6331,190.39,190.28,8.23600939]
[1735631940536,20.0,190.37,190.28,8.23600939]
[1735631940735,20.0,190.37,190.27,2.38079943]
[1735631941050,20.0,190.37,190.33,9.61766703]
[1735631941529,1.6331,190.39,190.33,9.61766703]
[1735631941736,21.6331,190.39,190.33,9.61766703]
[1735631946358,21.6331,190.39,190.27,1.5928]
[1735631946560,21.6331,190.39,190.33,9.61766703]
[1735631947239,21.6331,190.39,190.34,9.61766703]
[1735631951967,21.6331,190.39,190.35,9.61766703]
[1735631954064,21.6331,190.39,190.36,9.61766703]
[1735631954568,21.6331,190.39,190.37,9.61766703]
[1735631955049,21.6331,190.39,190.36,9.61766703]
[1735631956365,6.3722,190.43,190.36,9.61766703]
[1735631956366,20.0,190.4,190.36,9.61766703]
[1735631956667,20.0,190.4,190.37,9.61766703]